bitfinex/quotes_SOLUSD_20260201
["timestamp","ask_amount","ask_price","bid_price","bid_amount"]
[1769915849318,9.50118764,105.25,105.22,2.66245295]
[1769915849610,9.500285,105.26,105.23,2.56245295]
[1769915850599,12.15997329,105.26,105.23,2.56245295]
[1769915850800,2.65968829,105.25,105.22,2.66245295]
[1769915851503,12.16177874,105.24,105.22,0.1]
[1769915851818,12.16177874,105.24,105.22,2.66245295]
[1769915852004,9.50209045,105.24,105.22,2.66245295]
[1769915855203,12.16130284,105.25,105.22,2.66245295]
[1769915855800,9.50069151,105.26,105.22,2.66245295]
[1769915856310,12.1603798,105.26,105.22,2.66245295]
[1769915856513,12.1603798,105.26,105.23,2.56245295]
[1769915857219,2.65968829,105.27,105.23,2.56245295]
[1769915858417,2.65968829,105.27,105.24,2.4695162]
[1769915859418,11.99428643,105.28,105.25,2.4695162]
[1769915859715,11.99306199,105.29,105.25,2.4695162]
[1769915860123,2.49516205,105.28,105.25,2.4695162]
[1769915862511,11.9938808,105.28,105.25,2.4695162]
[1769915862715,9.49871875,105.28,105.26,2.64976087]
[1769915863312,12.01498369,105.28,105.26,2.64976087]
[1769915864615,9.49758706,105.29,105.26,2.64976087]
[1769915868419,9.49758706,105.29,105.26,55.58289464]
[1769915868719,9.49758706,105.29,105.27,2.64976087]
[1769915869221,12.013852,105.29,105.27,2.64976087]
[1769915874616,16.95953132,105.32,105.28,2.64976087]
[1769915874817,12.01154702,105.32,105.28,2.64976087]
[1769915876236,12.01154702,105.32,105.29,2.64976087]
[1769915880321,2.51626494,105.31,105.29,2.64976087]
[1769915880524,2.51626494,105.31,105.28,54.66273166]
[1769915881030,2.51626494,105.29,105.24,2.64976087]
[1769915881332,2.51626494,105.29,105.22,2.74976087]
[1769915881524,26.4,105.28,105.22,2.74976087]
[1769915881723,2.51626494,105.27,105.22,2.74976087]
[1769915882452,2.51626494,105.27,105.22,0.1]
[1769915883139,2.51626494,105.25,105.22,0.1]
[1769915885239,12.01835539,105.24,105.22,0.1]
[1769915891329,12.01835539,105.24,105.21,2.84976087]
[1769915891530,2.44628663,105.23,105.21,0.2]
[1769915891726,2.44628663,105.23,105.19,2.67338544]
[1769915893341,11.95018322,105.22,105.19,2.67338544]
[1769915895325,50.15522614,105.24,105.2,2.45208434]
[1769915895326,9.50299344,105.23,105.2,2.45208434]
[1769915896227,11.94928007,105.23,105.2,2.45208434]
[1769915897622,2.44628663,105.22,105.2,2.45208434]
[1769915897827,9.50299344,105.23,105.2,2.45208434]
[1769915897828,11.94928007,105.23,105.2,2.45208434]
[1769915898845,2.44628663,105.22,105.19,2.67338544]
[1769915899032,2.44628663,105.22,105.19,0.2213011]
[1769915899644,11.95108655,105.21,105.19,0.2213011]
[1769915901246,11.95108655,105.21,105.19,1e-08]
[1769915901247,2.44628663,105.2,105.19,1e-08]
[1769915901653,2.44628663,105.18,105.17,1e-08]
[1769915903546,11.95379756,105.18,105.17,1e-08]
[1769915903952,9.50751093,105.18,105.17,1e-08]
[1769915904258,11.95313276,105.19,105.17,1e-08]
[1769915904851,2.44628663,105.18,105.17,1e-08]
[1769915905438,2.44628663,105.18,105.14,2.45208434]
[1769915905734,11.95470157,105.17,105.13,2.45208434]
[1769915905938,9.50841494,105.17,105.14,2.45208434]
[1769915907043,11.95421256,105.18,105.14,2.45208434]
[1769915907244,11.95329222,105.19,105.14,2.45208434]
[1769915907443,9.50700559,105.19,105.15,2.45208434]
[1769915907642,9.50700559,105.19,105.16,2.45208434]
[1769915907846,11.95240963,105.2,105.16,2.45208434]
[1769915908536,11.95147719,105.21,105.16,2.45208434]
[1769915908740,50.17918402,105.23,105.17,2.45208434]
[1769915908741,38.36941404,105.23,105.17,2.45208434]
[1769915909038,35.92312741,105.23,105.18,2.45208434]
[1769915909245,9.50312741,105.23,105.19,2.45208434]
[1769915909951,2.44628663,105.22,105.19,2.45208434]
[1769915912136,2.44628663,105.21,105.16,2.45208434]
[1769915912637,2.44628663,105.21,105.15,2.45208434]
[1769915912844,2.44628663,105.2,105.15,2.45208434]
[1769915913458,2.44628663,105.2,105.14,2.45208434]
[1769915913664,2.44628663,105.2,105.13,2.45208434]
[1769915914343,2.44628663,105.18,105.13,2.45208434]
[1769915914848,35.71941144,105.19,105.14,2.45208434]
[1769915915067,9.50607278,105.2,105.15,2.45208434]
[1769915915574,35.71661796,105.2,105.15,2.45208434]
[1769915915865,2.44628663,105.19,105.15,2.45208434]
[1769915916249,9.50751093,105.18,105.15,2.45208434]
[1769915916651,11.95334613,105.19,105.15,2.45208434]
[1769915917048,2.51366745,105.18,105.15,2.45208434]
[1769915918466,12.0218659,105.18,105.15,2.45208434]
[1769915918668,2.51366745,105.17,105.12,2.43101444]
[1769915918854,35.79064323,105.18,105.13,2.43101444]
[1769915919062,12.0218659,105.18,105.15,2.43101444]
[1769915920867,9.50570342,105.2,105.16,2.43101444]
[1769915921054,12.01937087,105.2,105.15,8.941059]
[1769915921256,12.01937087,105.2,105.15,12.42188535]
[1769915921457,9.50522466,105.21,105.16,3.48082635]
[1769915921659,12.0169916,105.23,105.15,32.71661772]
[1769915921861,12.0169916,105.23,105.17,9.3158564]
[1769915922370,2.51366745,105.22,105.15,42.03247412]
[1769915923074,2.56547473,105.21,105.16,2.40402552]
[1769915924267,12.07015515,105.22,105.18,2.40402552]
[1769915927073,12.07015515,105.22,105.19,2.40402552]
[1769915929783,2.56547473,105.21,105.18,61.2]
[1769915929984,2.56547473,105.21,105.18,63.60402552]
[1769915930182,9.50468042,105.22,105.18,63.60402552]
[1769915930382,12.07015515,105.22,105.19,2.40402552]
[1769915933783,2.56547473,105.22,105.19,11.91027873]
[1769915933974,9.50339775,105.23,105.2,2.40402552]
[1769915935087,2.56547473,105.23,105.2,2.40402552]
[1769915935967,2.56547473,105.23,105.2,11.90971291]
[1769915937470,12.06847308,105.23,105.2,2.40402552]
[1769915937883,12.06796378,105.24,105.2,2.40402552]
[1769915938080,12.06796378,105.24,105.2,11.90959843]
[1769915938292,12.06796378,105.24,105.2,2.40402552]
[1769915938293,2.56547473,105.23,105.2,2.40402552]
[1769915938681,2.56547473,105.23,105.2,11.90959548]
[1769915938880,2.56547473,105.23,105.2,2.40402552]
[1769915939790,2.56547473,105.23,105.2,11.90961106]
[1769915942506,12.06714012,105.25,105.21,2.40402552]
[1769915942795,2.56547473,105.24,105.21,2.40402552]
[1769915944194,12.06714012,105.25,105.21,2.40402552]
[1769915944877,12.06714012,105.25,105.22,2.40402552]
[1769915945076,12.06612722,105.26,105.22,2.40402552]
[1769915945489,2.56547473,105.25,105.22,2.40402552]
[1769915948309,2.61491255,105.24,105.2,73.17814657]
[1769915948804,2.61491255,105.24,105.21,2.472911]
[1769915953108,2.61491255,105.24,105.21,11.97754689]
[1769915953304,12.11556101,105.26,105.22,2.472911]
[1769915954007,2.61491255,105.25,105.22,2.472911]
[1769915954815,2.61491255,105.25,105.21,11.97754689]
[1769915955300,2.61491255,105.25,105.22,2.472911]
[1769915957709,2.61491255,105.25,105.23,2.472911]
[1769915960919,2.61491255,105.25,105.22,73.17652338]
[1769915963705,2.61491255,105.25,105.22,63.672911]
[1769915964625,12.11611009,105.25,105.22,63.672911]
[1769915965036,12.11611009,105.25,105.22,61.2]
[1769915965211,12.11611009,105.25,105.22,63.672911]
[1769915965413,2.61491255,105.25,105.22,73.17679289]
[1769915966326,2.61491255,105.25,105.22,63.672911]
[1769915969216,12.11625686,105.25,105.22,63.672911]
[1769915971529,2.61491255,105.24,105.22,63.672911]
[1769915971732,12.11625686,105.25,105.22,63.672911]
[1769915972126,2.61491255,105.24,105.22,61.2]
[1769915973125,12.11730148,105.24,105.22,61.2]
[1769915974430,2.61491255,105.23,105.22,61.2]
[1769915974635,2.61491255,105.23,105.21,63.672911]
[1769915975136,2.61491255,105.23,105.2,3.244627]
[1769915975821,2.61491255,105.23,105.21,2.472911]
[1769915976733,2.61491255,105.22,105.2,0.771716]
[1769915977226,2.61491255,105.22,105.2,3.48394829]
[1769915977412,12.01149859,105.23,105.2,3.48394829]
[1769915977730,2.50833555,105.27,105.21,0.52132302]
[1769915977934,2.50833555,105.27,105.23,0.52132302]
[1769915978535,2.50833555,105.27,105.24,0.52586702]
[1769915979039,12.0079029,105.27,105.24,0.52586702]
[1769915979209,2.50833555,105.26,105.21,10.03015472]
[1769915979412,2.50833555,105.26,105.2,0.771716]
[1769915980035,26.4,105.25,105.2,0.771716]
[1769915980333,2.50833555,105.24,105.2,1e-08]
[1769915980634,2.50833555,105.22,105.15,10.04045486]
[1769915982337,2.50833555,105.22,105.14,10.05027572]
[1769915982514,2.71975793,105.2,105.14,0.53918827]
[1769915983120,2.71975793,105.2,105.14,10.05003179]
[1769915983933,2.71975793,105.2,105.14,0.53918827]
[1769915984135,2.71975793,105.2,105.13,10.04082215]
[1769915984824,2.71975793,105.18,105.14,0.51079568]
[1769915986530,2.71975793,105.19,105.15,0.49260379]
[1769915986919,2.71975793,105.19,105.15,9.98396717]
[1769915989933,2.71975793,105.19,105.16,0.42190191]
[1769915990433,2.71975793,105.19,105.15,33.70680694]
[1769915990631,2.71975793,105.19,105.16,0.40473106]
[1769915991015,2.71975793,105.2,105.16,0.40473106]
[1769915992322,2.71975793,105.2,105.16,9.91329767]
[1769915993130,2.71975793,105.2,105.17,0.37097876]
[1769915993330,2.71975793,105.2,105.17,9.87921877]
[1769915996640,2.71975793,105.2,105.16,9.8150884]
[1769915997142,2.71975793,105.19,105.16,9.8150884]
[1769915997323,2.71975793,105.19,105.15,71.01555052]
[1769915997524,2.71975793,105.19,105.15,9.81555052]
[1769915999340,2.71975793,105.18,105.12,9.78681819]
[1769916000321,2.71975793,105.18,105.13,0.25880203]
[1769916000736,2.71975793,105.18,105.13,9.77075195]
[1769916000941,2.71975793,105.18,105.12,0.24350454]
[1769916001325,2.71975793,105.16,105.12,9.75624573]
[1769916001524,2.71975793,105.16,105.11,0.1]
[1769916003340,9.51022349,105.15,105.11,0.1]
[1769916003547,2.71975793,105.14,105.11,0.1]
[1769916003750,12.2293478,105.16,105.12,0.19865826]
[1769916003952,9.50958987,105.16,105.12,0.19865826]
[1769916004249,2.71975793,105.15,105.11,0.29865826]
[1769916004457,2.71975793,105.15,105.11,0.1]
[1769916004636,2.71975793,105.15,105.11,0.28405158]
[1769916005250,2.71975793,105.15,105.11,0.1]
[1769916005452,12.23028602,105.15,105.11,0.28405158]
[1769916005751,12.23028602,105.15,105.11,9.79752078]
[1769916005951,2.71975793,105.14,105.11,9.79752078]
[1769916006650,2.71975793,105.15,105.11,9.79752078]
[1769916006852,2.71975793,105.15,105.12,0.15533961]
[1769916008748,2.71975793,105.15,105.12,9.66824854]
[1769916009253,2.71975793,105.15,105.12,70.71290893]
[1769916009752,2.49427525,105.18,105.14,3.57493211]
[1769916009958,2.49427525,105.18,105.15,0.09986803]
[1769916010346,2.49427525,105.17,105.14,61.2]
[1769916010663,2.49427525,105.17,105.12,55.24400115]
[1769916011171,2.49427525,105.17,105.12,64.75678442]
[1769916012565,9.50931913,105.16,105.12,64.75678442]
[1769916012763,2.49427525,105.15,105.12,64.75678442]
[1769916012966,2.49427525,105.15,105.12,9.6126513]
[1769916015465,2.49427525,105.17,105.13,0.03403786]
[1769916015770,2.49427525,105.18,105.14,3.49638609]
[1769916016467,2.49427525,105.18,105.15,0.02132201]
[1769916017369,2.49427525,105.18,105.15,9.5315455]
[1769916018974,2.49427525,105.18,105.14,9.51070839]
[1769916019558,2.49427525,105.17,105.13,9.51203272]
[1769916020871,2.49427525,105.17,105.13,64.65616584]
[1769916022261,2.49427525,105.16,105.13,55.14413312]
[1769916022778,2.49427525,105.16,105.12,9.5125108]
[1769916023275,2.49427525,105.18,105.13,12.98703481]
[1769916023471,2.49427525,105.18,105.13,36.76711661]
[1769916023774,2.49427525,105.18,105.13,33.29205253]
[1769916024076,2.49427525,105.18,105.13,36.76711661]
[1769916025475,2.49427525,105.17,105.13,9.51197073]
[1769916025783,12.00188524,105.18,105.13,9.51197073]
[1769916026565,2.49427525,105.17,105.12,9.51292935]
[1769916027684,2.49427525,105.16,105.12,9.51292935]
[1769916028264,2.49427525,105.16,105.11,55.24413312]
[1769916028463,2.49427525,105.16,105.11,0.1]
[1769916029880,2.49427525,105.14,105.11,0.1]
[1769916031974,2.49427525,105.15,105.11,0.1]
[1769916032574,2.49427525,105.15,105.11,55.24413312]
[1769916034185,2.49427525,105.15,105.11,64.75742482]
[1769916036982,2.49427525,105.15,105.11,68.2388658]
[1769916037580,2.49427525,105.18,105.13,3.48144098]
[1769916037890,2.49427525,105.19,105.14,3.48144098]
[1769916039389,2.49427525,105.19,105.15,9.51022349]
[1769916044596,12.00026986,105.2,105.15,12.99166447]
[1769916045090,2.49427525,105.19,105.15,9.51022349]
[1769916045487,9.50687865,105.19,105.15,9.51022349]
[1769916045693,2.49427525,105.18,105.14,9.51092217]
[1769916047190,2.49427525,105.18,105.14,70.71092217]
[1769916049491,12.00178785,105.18,105.14,70.71092217]
[1769916050971,2.49427525,105.17,105.14,61.2]
[1769916051179,2.49427525,105.17,105.11,9.61332115]
[1769916051895,2.49427525,105.17,105.12,9.51290179]
[1769916053403,2.49427525,105.15,105.12,9.51290179]
[1769916053599,2.49427525,105.18,105.13,3.48144098]
[1769916053790,2.49427525,105.18,105.14,3.48144098]
[1769916054586,2.49427525,105.18,105.14,64.68144098]
[1769916054992,2.49427525,105.19,105.15,3.48144098]
[1769916055185,2.49427525,105.19,105.16,9.50931913]
[1769916057402,2.49427525,105.19,105.15,9.51022349]
[1769916058506,2.49427525,105.18,105.14,70.71067655]
[1769916059111,2.49427525,105.18,105.14,9.51067655]
[1769916061108,2.49427525,105.18,105.12,51.04612895]
[1769916061311,2.49427525,105.17,105.11,36.87989022]
[1769916061606,2.49427525,105.17,105.11,98.07989022]
[1769916062110,2.49427525,105.17,105.11,94.59844924]
[1769916063010,12.00303817,105.17,105.11,94.59844924]
[1769916063206,2.49427525,105.16,105.11,98.07989022]
[1769916065325,35.76423722,105.2,105.12,3.48144098]
[1769916065496,2.49427525,105.2,105.15,3.48144098]
[1769916066607,2.49427525,105.2,105.16,9.50931913]
[1769916067630,2.49427525,105.21,105.17,3.48144098]
[1769916067919,2.49427525,105.23,105.18,3.48144098]
[1769916068817,2.49427525,105.23,105.19,9.50660709]
[1769916076418,2.49427525,105.22,105.18,61.2]
[1769916076617,2.49427525,105.22,105.16,84.97167158]
[1769916076916,2.49427525,105.22,105.17,9.50788644]
[1769916078510,2.49427525,105.21,105.17,9.50788644]
[1769916080606,26.42,105.25,105.17,9.50788644]
[1769916080607,2.49427525,105.24,105.18,3.48144098]
[1769916081713,2.49427525,105.23,105.19,9.50660709]
[1769916085324,2.49427525,105.22,105.19,61.2]
[1769916086023,2.49427525,105.22,105.16,61.2]
[1769916086621,33.26096108,105.23,105.16,9.50885095]
[1769916086622,2.49427525,105.2,105.16,9.50885095]
[1769916086933,2.49427525,105.2,105.14,9.51062965]
[1769916087112,2.49427525,105.2,105.15,9.51013918]
[1769916088227,2.49427525,105.18,105.14,9.51112801]
[1769916089622,2.49427525,105.18,105.13,27.25933537]
[1769916091036,2.49427525,105.18,105.13,36.77136809]
[1769916093433,12.00041562,105.2,105.14,3.4799007]
[1769916093631,2.49427525,105.19,105.14,3.4799007]
[1769916094139,2.49427525,105.19,105.14,64.6799007]
[1769916095237,2.49427525,105.19,105.15,9.51022349]
[1769916096636,2.49427525,105.19,105.15,33.28578221]
[1769916096819,2.49427525,105.19,105.15,36.76568291]
[1769916097420,2.49427525,105.2,105.15,97.96568291]
[1769916114650,2.49427525,105.2,105.15,94.48578221]
[1769916114836,2.49427525,105.2,105.15,97.96568291]
[1769916115035,2.49427525,105.2,105.15,94.48578221]
[1769916115657,2.49427525,105.2,105.15,97.96568291]
[1769916117553,2.49427525,105.2,105.15,94.48578221]
[1769916117778,2.49427525,105.2,105.15,97.96568291]
[1769916118755,2.49427525,105.19,105.15,94.48578221]
[1769916122062,2.49427525,105.19,105.15,97.96568291]
[1769916122762,9.5057978,105.2,105.16,3.4799007]
[1769916122763,2.49427525,105.2,105.16,3.4799007]
[1769916122963,2.49427525,105.2,105.16,64.6799007]
[1769916123264,2.49427525,105.2,105.16,61.2]
[1769916123654,2.49427525,105.2,105.14,9.51069313]
[1769916124162,2.49427525,105.18,105.14,9.51069313]
[1769916125375,2.49427525,105.17,105.14,9.51069313]
[1769916138080,2.49427525,105.17,105.14,70.71069313]
[1769916142081,2.49427525,105.18,105.14,97.96841387]
[1769916143580,2.49427525,105.18,105.14,94.48851317]
[1769916146777,2.49427525,105.18,105.14,97.96841387]
[1769916146978,2.49427525,105.19,105.14,97.96841387]
[1769916147178,2.49427525,105.19,105.15,3.4799007]
[1769916147785,2.49427525,105.2,105.15,64.6799007]
[1769916148266,2.49427525,105.2,105.16,33.28261696]
[1769916149389,2.49427525,105.2,105.16,36.76251766]
[1769916149566,2.49427525,105.2,105.16,33.28261696]
[1769916151276,2.49427525,105.19,105.16,9.50931913]
[1769916152878,2.49427525,105.19,105.16,70.70931913]
[1769916155091,20.55565951,105.22,105.16,70.70931913]
[1769916155586,20.55565951,105.22,105.16,72.33316294]
[1769916156417,30.0595561,105.22,105.13,1.62384381]
[1769916156692,4.69235999,105.21,105.13,1.62384381]
[1769916157091,2.03833762,105.2,105.13,1.62384381]
[1769916157267,2.03833762,105.2,105.13,11.13546169]
[1769916157472,2.03833762,105.18,105.14,1.61921627]
[1769916160393,11.54668334,105.18,105.14,1.61921627]
[1769916160594,2.03833762,105.17,105.14,1.61921627]
[1769916161094,2.03833762,105.17,105.13,11.13505461]
[1769916161289,2.03833762,105.17,105.11,1.72343673]
[1769916161591,2.03833762,105.17,105.11,0.1]
[1769916161788,2.03833762,105.17,105.11,9.61337683]
[1769916162692,9.50931913,105.16,105.11,11.26895679]
[1769916163074,2.02454572,105.15,105.11,11.26895679]
[1769916163693,2.02454572,105.15,105.11,72.46895679]
[1769916165599,2.02454572,105.14,105.11,72.46895679]
[1769916166794,2.02454572,105.14,105.11,62.95557996]
[1769916167598,2.02454572,105.13,105.11,61.3]
[1769916168202,2.02454572,105.13,105.1,85.20155569]
[1769916169285,0.43381419,105.11,105.1,85.20155569]
[1769916169485,0.43381419,105.11,105.1,0.1]
[1769916169993,0.43381419,105.11,105.08,1.88854002]
[1769916171295,9.94839249,105.11,105.08,1.88854002]
[1769916174209,0.49339947,105.1,105.06,11.40658091]
[1769916174403,0.49339947,105.1,105.07,1.88854002]
[1769916174603,0.49339947,105.1,105.06,11.40658091]
[1769916174804,0.49339947,105.1,105.06,1.88854002]
[1769916175817,9.5145783,105.11,105.07,1.88854002]
[1769916176189,10.04961227,105.11,105.07,1.88854002]
[1769916177303,10.04961227,105.11,105.07,11.40557238]
[1769916177497,0.55549325,105.1,105.07,11.40557238]
[1769916178013,0.55549325,105.1,105.08,1.88854002]
[1769916178407,0.57571753,105.12,105.08,1.88854002]
[1769916178599,60.32968903,105.13,105.08,1.88854002]
[1769916178915,0.59570952,105.12,105.08,1.88854002]
[1769916179502,9.51384264,105.11,105.08,1.88854002]
[1769916179712,10.12931452,105.11,105.08,1.88854002]
[1769916181422,10.14613527,105.14,105.09,1.88854002]
[1769916182014,0.65431824,105.13,105.09,53.80848172]
[1769916182211,0.65431824,105.13,105.1,1.88854002]
[1769916182514,10.16670621,105.13,105.1,1.88854002]
[1769916189120,0.80103151,105.12,105.07,11.62603593]
[1769916189420,0.80103151,105.12,105.08,2.10901638]
[1769916191313,0.83563969,105.11,105.08,2.10901638]
[1769916192197,0.83563969,105.11,105.03,2.20901638]
[1769916192393,4.68743528,105.11,105.03,2.20901638]
[1769916192702,0.85264622,105.1,105.03,2.20901638]
[1769916193220,0.86945741,105.08,105.03,2.20901638]
[1769916193425,0.86945741,105.08,105.04,2.10901638]
[1769916194115,10.40172875,105.09,105.04,2.10901638]
[1769916194828,0.90250273,105.08,105.04,2.10901638]
[1769916195506,10.41940668,105.08,105.04,2.10901638]
[1769916196515,0.91874127,105.07,105.03,0.1]
[1769916196701,0.91874127,105.07,105.01,82.39360284]
[1769916197098,0.91874127,105.07,105.02,2.10901638]
[1769916197821,0.95066095,105.05,105.02,2.10901638]
[1769916198325,0.95066095,105.05,105.01,80.28458646]
[1769916198825,0.95066095,105.05,105.01,82.39360284]
[1769916199208,0.95066095,105.05,105.01,91.91636641]
[1769916199720,10.47019093,105.05,105.01,91.91636641]
[1769916199918,0.98185158,105.06,105.02,2.10901638]
[1769916201926,10.50064651,105.06,105.02,2.10901638]
[1769916203226,1.02730689,105.05,105.01,80.28458646]
[1769916203521,1.02730689,105.05,105.0,2.0]
[1769916204122,1.04211193,105.03,105.0,2.0]
[1769916204323,10.56229471,105.04,105.01,2.10901638]
[1769916205406,1.05674693,105.03,104.97,2.53556438]
[1769916206204,10.59320963,105.02,104.98,2.10901638]
[1769916206504,10.59246366,105.03,104.98,2.10901638]
[1769916206904,10.59246366,105.03,104.98,1.60901638]
[1769916207420,10.59246366,105.03,104.98,5.08692146]
[1769916207619,10.59246366,105.03,104.98,13.00313106]
[1769916208211,10.59246366,105.03,104.97,0.426548]
[1769916208518,10.59246366,105.03,104.97,3.90445308]
[1769916208917,10.59246366,105.03,104.98,2.10901638]
[1769916209114,9.52124984,105.03,104.98,2.10901638]
[1769916209427,11.13487496,105.03,104.99,2.10901638]
[1769916210525,47.59287539,105.06,105.0,2.10901638]
[1769916210526,11.16037018,105.05,105.0,2.10901638]
[1769916210708,11.16037018,105.05,105.01,2.10901638]
[1769916210709,9.51927653,105.05,105.01,2.10901638]
[1769916212532,11.17386827,105.05,105.01,2.10901638]
[1769916214334,11.17386827,105.05,105.02,2.10901638]
[1769916215730,47.5810445,105.09,105.02,2.10901638]
[1769916215924,26.46,105.1,105.03,2.46583589]
[1769916216121,26.46,105.1,105.04,2.46583589]
[1769916216451,10.95790185,105.14,105.04,2.46583589]
[1769916216616,37.41790185,105.14,105.05,2.46583589]
[1769916217215,47.56658756,105.12,105.05,2.46583589]
[1769916217640,0.11354785,105.11,105.05,2.46583589]
[1769916218125,0.11354785,105.11,105.06,2.46583589]
[1769916223037,0.11354785,105.11,105.06,61.2]
[1769916223231,0.11354785,105.11,105.07,2.54896651]
[1769916229130,0.11354785,105.11,105.06,63.74896651]
[1769916229428,0.11354785,105.11,105.07,2.54896651]
[1769916230432,0.11354785,105.11,105.06,63.74896651]
[1769916230831,0.11354785,105.11,105.07,2.54896651]
[1769916238258,0.11354785,105.11,105.05,2.54896651]
[1769916239461,0.24710871,105.1,105.05,2.54896651]
[1769916241549,33.56005021,105.09,105.05,2.54896651]
[1769916243960,33.30478636,105.09,105.05,2.54896651]
[1769916244646,33.57580596,105.09,105.05,2.54896651]
[1769916248754,33.30478636,105.09,105.05,2.54896651]
[1769916249463,33.30478636,105.09,105.06,2.5818786]
[1769916249762,33.59450389,105.09,105.06,2.5818786]
[1769916252961,0.30391741,105.09,105.06,2.5818786]
[1769916255062,9.82013553,105.09,105.06,2.5818786]
[1769916258657,0.324024,105.1,105.06,2.5818786]
[1769916261065,0.33042239,105.08,105.05,63.7818786]
[1769916261371,33.63520875,105.09,105.05,2.5818786]
[1769916261550,33.30478636,105.09,105.05,2.5818786]
[1769916261741,0.33356658,105.08,105.05,2.5818786]
[1769916261945,33.63835294,105.09,105.05,2.5818786]
[1769916262866,0.33667465,105.08,104.97,0.426548]
[1769916263072,2.6001773,105.04,104.98,9.52475745]
[1769916264271,2.6001773,105.02,104.97,0.426548]
[1769916264659,2.6001773,105.02,104.97,3.91498174]
[1769916264858,2.6001773,105.02,104.98,2.5818786]
[1769916265569,12.12126651,105.03,104.98,2.5818786]
[1769916265759,12.12126651,105.03,104.99,2.5818786]
[1769916265961,2.6001773,105.03,104.99,2.5818786]
[1769916266154,12.1206542,105.04,105.0,2.5818786]
[1769916268758,23.79995409,105.05,105.01,2.5818786]
[1769916268759,12.1197577,105.05,105.01,2.5818786]
[1769916269167,12.1197577,105.05,105.02,2.5818786]
[1769916269482,9.5195804,105.05,105.02,2.5818786]
[1769916269657,12.1197577,105.05,105.02,2.5818786]
[1769916271180,38.55874929,105.06,105.03,2.5818786]
[1769916271367,12.11874929,105.06,105.03,2.5818786]
[1769916271678,2.6001773,105.07,105.03,2.5818786]
[1769916273478,9.51837045,105.06,105.03,2.5818786]
[1769916274674,12.11854775,105.06,105.03,2.5818786]
[1769916274862,12.11804453,105.07,105.04,2.5818786]
[1769916275775,38.57610386,105.09,105.05,2.5818786]
[1769916277478,12.11610386,105.09,105.05,2.5818786]
[1769916280383,2.43358747,105.11,105.06,2.49823837]
[1769916280576,11.94690964,105.12,105.08,2.49823837]
[1769916282176,2.43358747,105.11,105.06,2.49823837]
[1769916283996,9.51474785,105.1,105.06,2.49823837]
[1769916284183,11.91356102,105.1,105.06,2.49823837]
[1769916287598,11.91356102,105.1,105.06,63.69823837]
[1769916290380,11.91356102,105.1,105.06,61.2]
[1769916290587,11.91356102,105.1,105.07,2.43248786]
[1769916291589,2.39881317,105.09,105.06,2.43248786]
[1769916292488,11.91502645,105.09,105.06,2.43248786]
[1769916297094,26.18568281,105.1,105.06,2.43248786]
[1769916298099,35.70043066,105.1,105.06,2.43248786]
[1769916298593,33.30161749,105.1,105.06,2.43248786]
[1769916298798,35.70043066,105.1,105.06,2.43248786]
[1769916299600,2.39881317,105.09,105.06,2.43248786]
[1769916300299,9.51336562,105.12,105.09,2.43248786]
[1769916300688,2.39881317,105.11,105.08,63.63248786]
[1769916301081,11.91217879,105.12,105.09,2.43248786]
[1769916301298,35.69452277,105.12,105.09,2.43248786]
[1769916301499,11.91217879,105.12,105.09,2.43248786]
[1769916303303,11.91102257,105.13,105.1,2.43248786]
[1769916305697,2.39881317,105.12,105.09,63.63248786]
[1769916306283,2.39881317,105.12,105.1,2.43248786]
[1769916306603,2.39881317,105.12,105.09,63.63248786]
[1769916307712,2.39881317,105.12,105.09,63.47329311]
[1769916308012,11.91189525,105.12,105.09,63.47329311]
[1769916308201,11.91189525,105.12,105.1,2.27329311]
[1769916308584,9.51308208,105.12,105.1,2.27329311]
[1769916309802,2.29452651,105.11,105.09,61.2]
[1769916310191,11.8091715,105.11,105.09,61.2]
[1769916310393,11.8091715,105.11,105.08,2.27329311]
[1769916311195,9.51464499,105.11,105.08,2.27329311]
[1769916312904,2.29452651,105.1,105.06,2.27329311]
[1769916315097,9.51565324,105.09,105.06,2.27329311]
[1769916316008,2.29452651,105.08,105.04,2.27329311]
[1769916317110,9.51746454,105.07,105.04,2.27329311]
[1769916317487,11.81199105,105.07,105.04,2.27329311]
[1769916318405,11.81199105,105.07,105.03,61.2]
[1769916318406,2.29452651,105.06,105.02,63.47329311]
[1769916318615,59.7511259,105.07,105.03,2.27329311]
[1769916318802,9.51746454,105.07,105.03,2.27329311]
[1769916320411,9.51746454,105.07,105.04,2.27329311]
[1769916322795,9.51746454,105.07,105.04,63.47329311]
[1769916322996,11.81199105,105.07,105.04,63.47329311]
[1769916323495,11.81199105,105.07,105.04,61.2]
[1769916323794,11.81199105,105.07,105.05,2.27329311]
[1769916325098,2.29452651,105.08,105.05,2.27329311]
[1769916325295,35.60056124,105.09,105.05,2.27329311]
[1769916326531,9.51565324,105.09,105.06,2.27329311]
[1769916328418,11.81017975,105.09,105.06,2.27329311]
[1769916330417,35.59931287,105.09,105.06,2.27329311]
[1769916330714,2.29452651,105.08,105.04,63.47329311]
[1769916331308,9.51746454,105.07,105.04,63.47329311]
[1769916331709,9.51746454,105.07,105.04,61.2]
[1769916331894,9.51746454,105.07,105.05,2.27329311]